bitfinex/quotes_SOLUSD_20250111
["timestamp","ask_amount","ask_price","bid_price","bid_amount"]
[1736573781924,1.525,185.88,185.79,20.0]
[1736573782126,9.01412538,185.82,185.8,101.3]
[1736573782433,9.01412538,185.82,185.8,81.3]
[1736573783255,9.01412538,185.81,185.8,81.3]
[1736573784814,9.01412538,185.82,185.8,81.3]
[1736573788437,1.5551,185.92,185.83,20.0]
[1736573788630,9.01412538,185.85,185.83,20.0]
[1736573789541,9.01412538,185.84,185.83,20.0]
[1736573789839,9.01412538,185.85,185.83,20.0]
[1736573793123,2.56379174,185.92,185.83,20.0]
[1736573793321,9.01412538,185.85,185.83,20.0]
[1736573796048,2.56379174,185.92,185.83,101.3]
[1736573796254,9.01412538,185.85,185.83,101.3]
[1736573797153,9.01412538,185.84,185.83,101.3]
[1736573801440,2.56379174,185.92,185.83,125.076884]
[1736573801647,9.01412538,185.87,185.86,20.0]
[1736573805360,9.01412538,185.87,185.86,101.3]
[1736573806876,1.5551,185.92,185.86,101.3]
[1736573807172,9.01412538,185.88,185.86,101.3]
[1736573808481,83.0,185.96,185.86,101.3]
[1736573808681,1.6651,185.98,185.87,81.70995445]
[1736573808859,9.01412538,185.92,185.9,20.0]
[1736573809057,9.01412538,185.91,185.87,221.42]
[1736573809253,1.6651,185.98,185.9,20.0]
[1736573809485,1.00839662,185.99,185.9,20.0]
[1736573809777,9.01412538,185.92,185.9,20.0]
[1736573809976,9.01412538,185.91,185.9,20.0]
[1736573812862,9.01412538,185.92,185.9,20.0]
[1736573813701,9.01412538,185.91,185.9,20.0]
[1736573814288,9.01412538,185.91,185.87,216.9]
[1736573814584,9.01412538,185.88,185.87,216.9]
[1736573814755,9.01412538,185.88,185.83,87.8598]
[1736573814961,1.00854839,185.93,185.83,87.8598]
[1736573814962,9.01412538,185.84,185.83,87.8598]
[1736573815677,9.01412538,185.85,185.83,87.8598]
[1736573816362,9.01412538,185.86,185.85,20.0]
[1736573816886,1.5491,185.94,185.85,101.3]
[1736573817091,9.01412538,185.89,185.88,20.0]
[1736573821480,9.01412538,185.89,185.86,81.3]
[1736573821667,9.01412538,185.87,185.86,20.0]
[1736573821866,9.01412538,185.87,185.83,87.8598]
[1736573821867,2.66680658,186.0,185.94,20.0]
[1736573822087,8.39778687,186.05,186.04,2.5363]
[1736573822289,8.39778687,186.05,186.04,22.5363]
[1736573822473,17.41191225,186.05,186.04,22.5363]
[1736573822677,9.01412538,186.05,186.01,2.5363]
[1736573822874,34.18970008,186.07,186.01,2.5363]
[1736573823075,9.01412538,186.02,186.01,2.5363]
[1736573823871,9.01412538,186.02,185.94,30.0]
[1736573823872,9.01412538,186.02,185.97,2.5363]
[1736573824096,9.01412538,185.98,185.95,2.5363]
[1736573824395,9.01412538,185.96,185.95,22.5363]
[1736573825294,9.01412538,185.96,185.93,2.5363]
[1736573825491,0.59855258,186.02,185.94,2.5363]
[1736573826005,0.59855258,186.02,185.88,30.0]
[1736573826006,23.776884,186.01,185.92,20.0]
[1736573826168,23.776884,186.01,185.9,2.5363]
[1736573826169,0.59855258,186.0,185.9,2.5363]
[1736573826577,0.59855258,186.0,185.89,2.5363]
[1736573826773,9.01412538,185.9,185.89,2.5363]
[1736573827691,9.01412538,185.9,185.88,4.8]
[1736573827692,0.59855258,186.0,185.92,2.5363]
[1736573827871,9.01412538,185.93,185.92,2.5363]
[1736573828886,0.59855258,186.01,185.92,2.5363]
[1736573829088,9.01412538,185.95,185.94,2.5363]
[1736573830684,9.01412538,185.96,185.94,2.5363]
[1736573830882,36.05650152,186.03,185.94,2.5363]
[1736573831086,9.01412538,185.97,185.96,2.5363]
[1736573831288,14.0712482,185.97,185.96,2.5363]
[1736573832783,14.0712482,185.98,185.96,2.5363]
[1736573832983,14.0712482,185.98,185.97,2.5363]
[1736573833800,14.0712482,185.98,185.96,2.5363]
[1736573834003,14.0712482,185.97,185.95,2.5363]
[1736573834204,14.0712482,185.96,185.94,22.5363]
[1736573834401,14.0712482,185.95,185.92,2.5363]
[1736573834713,14.0712482,185.93,185.92,2.5363]
[1736573836386,14.0712482,185.93,185.9,2.5363]
[1736573836591,14.0712482,185.91,185.9,20.0]
[1736573836786,14.0712482,185.91,185.88,2.5363]
[1736573836995,14.0712482,185.94,185.9,2.5363]
[1736573837805,14.0712482,185.91,185.9,2.5363]
[1736573842788,14.0712482,185.91,185.89,2.5363]
[1736573843016,14.0712482,185.9,185.87,22.5363]
[1736573843192,14.0712482,185.88,185.87,22.5363]
[1736573843394,14.0712482,185.89,185.87,22.5363]
[1736573843705,14.0712482,185.89,185.88,2.5363]
[1736573844102,14.0712482,185.91,185.88,2.5363]
[1736573844410,14.0712482,185.91,185.9,2.5363]
[1736573844914,14.0712482,185.94,185.92,2.5363]
[1736573845295,14.0712482,185.93,185.92,2.5363]
[1736573847317,14.0712482,185.94,185.92,2.5363]
[1736573847503,14.0712482,185.93,185.92,2.5363]
[1736573850820,14.0712482,185.94,185.93,2.5363]
[1736573851000,14.0712482,185.95,185.94,2.5363]
[1736573851412,9.00764358,185.95,185.94,2.5363]
[1736573862441,46.03057432,186.03,185.93,20.0]
[1736573862442,46.03057432,186.03,185.96,2.5363]
[1736573862624,46.6291269,186.03,185.96,2.5363]
[1736573863746,9.00764358,185.97,185.96,2.5363]
[1736573866032,10.0,186.03,186.0,2.5363]
[1736573866339,9.00764358,186.01,185.99,2.5363]
[1736573866520,9.00764358,186.0,185.99,2.5363]
[1736573868655,9.00764358,186.0,185.98,2.5363]
[1736573868860,9.00764358,185.99,185.98,2.5363]
[1736573871051,10.0,186.03,185.98,2.5363]
[1736573871254,10.0,186.03,186.01,2.5363]
[1736573871451,9.00764358,186.02,186.01,2.5363]
[1736573873042,10.0,186.03,186.01,2.5363]
[1736573873242,9.00764358,186.02,186.01,2.5363]
[1736573877159,10.0,186.03,186.01,2.5363]
[1736573877339,10.0,186.03,186.02,2.5363]
[1736573877538,19.00764358,186.03,186.02,2.5363]
[1736573887444,10.0,186.03,186.02,2.5363]
[1736573887778,19.00764358,186.03,186.02,2.5363]
[1736573896689,10.0,186.03,186.02,26.313184]
[1736573897893,9.00764358,186.06,186.05,20.0]
[1736573898195,1.6625,186.14,186.06,22.5363]
[1736573898505,1.6625,186.14,186.09,2.5363]
[1736573899197,0.59855258,186.13,186.08,2.5363]
[1736573899395,0.59855258,186.13,186.07,2.5363]
[1736573899576,9.00764358,186.08,186.07,2.5363]
[1736573899986,9.00764358,186.08,186.06,2.5363]
[1736573900193,9.00764358,186.07,186.05,2.5363]
[1736573900376,36.03057432,186.12,186.05,2.5363]
[1736573900580,9.00764358,186.08,186.07,2.5363]
[1736573901171,1.6625,186.14,186.1,2.5363]
[1736573901494,9.00764358,186.11,186.1,2.5363]
[1736573901679,1.6625,186.19,186.12,2.5363]
[1736573901878,1.6625,186.19,186.13,2.5363]
[1736573902484,1.6625,186.19,186.15,2.5363]
[1736573903067,5.3694,186.24,186.16,2.5363]
[1736573903403,9.00764358,186.17,186.16,2.5363]
[1736573906992,1.5671,186.24,186.16,22.5363]
[1736573907195,9.00764358,186.17,186.16,22.5363]
[1736573908276,9.00764358,186.18,186.17,2.5363]
[1736573908600,9.00764358,186.18,186.16,2.5363]
[1736573908802,9.00764358,186.17,186.16,2.5363]
[1736573910799,9.00764358,186.17,186.14,22.5363]
[1736573910974,9.00764358,186.15,186.14,22.5363]
[1736573912377,36.03057432,186.21,186.17,2.5363]
[1736573912578,9.00764358,186.18,186.17,2.5363]
[1736573914715,9.00764358,186.18,186.15,2.5363]
[1736573915012,9.00764358,186.16,186.15,2.5363]
[1736573916003,9.00764358,186.17,186.15,2.5363]
[1736573916313,9.00764358,186.17,186.15,22.5363]
[1736573916701,1.5671,186.24,186.19,2.5363]
[1736573916996,9.00764358,186.2,186.19,2.5363]
[1736573918292,9.00764358,186.21,186.19,2.5363]
[1736573918704,9.00764358,186.2,186.19,2.5363]
[1736573919426,2.14205258,186.28,186.19,2.5363]
[1736573919595,9.00764358,186.21,186.2,2.5363]
[1736573921244,9.00764358,186.24,186.23,2.5363]
[1736573921940,9.00764358,186.26,186.25,2.5363]
[1736573922139,10.0,186.29,186.26,2.5363]
[1736573922140,9.00764358,186.27,186.26,2.5363]
[1736573923100,10.0,186.29,186.28,2.5363]
[1736573923310,19.00764358,186.29,186.28,2.5363]
[1736573923506,10.0,186.29,186.28,2.5363]
[1736573924535,19.00764358,186.29,186.28,2.5363]
[1736573926013,19.00764358,186.29,186.28,26.313184]
[1736573926213,10.0,186.29,186.28,27.11816297]
[1736573928035,0.34273067,186.32,186.31,20.0]
[1736573928204,0.34273067,186.32,186.31,22.5363]
[1736573928408,0.34273067,186.32,186.3,2.5363]
[1736573928616,9.00764358,186.31,186.3,2.5363]
[1736573936446,9.00764358,186.31,186.29,2.5363]
[1736573936657,9.00764358,186.3,186.29,2.5363]
[1736573937457,45.0382179,186.3,186.26,2.5363]
[1736573937659,9.00764358,186.27,186.25,2.5363]
[1736573937956,36.03057432,186.3,186.26,2.5363]
[1736573938112,9.00764358,186.27,186.26,2.5363]
[1736573939629,9.00764358,186.27,186.22,2.5363]
[1736573939953,9.00764358,186.23,186.21,2.5363]
[1736573940154,9.00764358,186.22,186.21,2.5363]
[1736573941433,9.00764358,186.22,186.21,22.5363]
[1736573941970,1.5144,186.28,186.25,2.5363]
[1736573942150,36.03057432,186.3,186.26,2.5363]
[1736573943242,7.47945258,186.34,186.26,2.5363]
[1736573943436,2.11295258,186.34,186.26,2.5363]
[1736573943655,9.00764358,186.27,186.26,2.5363]
[1736573943963,9.00764358,186.27,186.25,20.0]
[1736573943964,9.00764358,186.27,186.25,2.5363]
[1736573944164,20.0,186.33,186.25,2.5363]
[1736573944475,0.59855258,186.32,186.25,2.5363]
[1736573944692,9.00764358,186.26,186.25,2.5363]
[1736573944854,9.00764358,186.26,186.24,2.5363]
[1736573945190,9.00764358,186.25,186.24,2.5363]
[1736573945986,9.00764358,186.25,186.23,2.5363]
[1736573946170,0.59855258,186.29,186.23,2.5363]
[1736573946171,9.00764358,186.24,186.23,2.5363]
[1736573948676,9.00764358,186.24,186.22,2.5363]
[1736573948872,9.00764358,186.23,186.21,2.5363]
[1736573949075,9.00764358,186.22,186.2,2.5363]
[1736573949375,9.00764358,186.21,186.2,2.5363]
[1736573950961,1.6475,186.27,186.22,2.5363]
[1736573951180,9.00764358,186.23,186.22,2.5363]
[1736573952078,9.00764358,186.24,186.22,2.5363]
[1736573952375,9.00764358,186.24,186.23,2.5363]
[1736573956886,36.6291269,186.3,186.24,2.5363]
[1736573957070,0.59855258,186.3,186.24,2.5363]
[1736573957271,9.00764358,186.25,186.24,2.5363]
[1736573959773,9.00764358,186.25,186.22,2.5363]
[1736573959973,36.6291269,186.3,186.24,2.5363]
[1736573960283,9.00764358,186.25,186.24,2.5363]
[1736573961184,36.6291269,186.3,186.24,2.5363]
[1736573961374,36.03057432,186.3,186.25,2.5363]
[1736573961577,9.00764358,186.26,186.25,2.5363]
[1736573962479,1.6475,186.32,186.25,2.5363]
[1736573962677,5.3662,186.35,186.28,2.5363]
[1736573962879,0.59855258,186.34,186.29,2.5363]
[1736573964495,9.00764358,186.3,186.29,2.5363]
[1736573969971,9.00764358,186.3,186.26,20.0]
[1736573969972,9.00764358,186.3,186.28,2.5363]
[1736573970172,9.00764358,186.29,186.27,2.5363]
[1736573970395,9.00764358,186.28,186.27,2.5363]
[1736573971195,9.00764358,186.28,186.25,2.5363]
[1736573971380,9.00764358,186.26,186.23,2.5363]
[1736573971585,0.59855258,186.29,186.24,2.5363]
[1736573973891,0.59855258,186.29,186.23,2.5363]
[1736573974102,9.00764358,186.24,186.23,2.5363]
[1736573975002,9.00764358,186.24,186.21,22.5363]
[1736573975202,9.00764358,186.22,186.21,22.5363]
[1736573975398,9.00764358,186.22,186.19,2.5363]
[1736573975604,9.00764358,186.2,186.19,2.5363]
[1736573976296,9.00764358,186.2,186.19,22.5363]
[1736573977283,9.00764358,186.2,186.19,26.30141567]
[1736573979390,9.00764358,186.2,186.19,6.30141567]
[1736573979787,9.00764358,186.2,186.19,3.76511567]
[1736573980484,9.00764358,186.2,186.18,2.5363]
[1736573980686,9.00764358,186.19,186.17,2.5363]
[1736573980888,9.00764358,186.18,186.16,22.5363]
[1736573981187,9.00764358,186.17,186.16,22.5363]
[1736573981909,9.00764358,186.17,186.16,2.5363]
[1736573982490,9.00764358,186.17,186.16,6.30193135]
[1736573983101,9.00764358,186.18,186.16,6.30193135]
[1736573983410,9.00764358,186.18,186.17,2.5363]
[1736573984608,9.00764358,186.19,186.17,2.5363]
[1736573985009,9.00764358,186.19,186.17,6.30193135]
[1736573985311,9.00764358,186.19,186.18,2.5363]
[1736573986591,9.00764358,186.2,186.19,2.5363]
[1736573986816,9.00764358,186.21,186.19,2.5363]
[1736573987516,9.00764358,186.21,186.2,2.5363]
[1736573989516,1.5797,186.3,186.24,2.5363]
[1736573989694,9.00764358,186.25,186.19,2.5363]
[1736573990031,9.00764358,186.2,186.19,2.5363]
[1736573994040,9.00764358,186.21,186.19,2.5363]
[1736573994332,9.00764358,186.21,186.2,2.5363]
[1736573997733,0.59855258,186.29,186.22,2.5363]
[1736573998038,9.00764358,186.24,186.22,2.5363]
[1736573998238,9.00764358,186.23,186.22,2.5363]
[1736574000136,9.00764358,186.23,186.2,2.5363]
[1736574000317,9.00764358,186.21,186.2,2.5363]
[1736574000633,9.00764358,186.22,186.2,2.5363]
[1736574001034,9.00764358,186.21,186.2,2.5363]
[1736574001535,9.00764358,186.21,186.19,2.5363]
[1736574001838,9.00764358,186.2,186.16,2.5363]
[1736574002046,9.00764358,186.17,186.16,2.5363]
[1736574002336,9.00764358,186.18,186.17,2.5363]
[1736574002511,9.00764358,186.19,186.17,22.5363]
[1736574003418,9.00764358,186.19,186.17,2.5363]
[1736574004531,2.17825258,186.25,186.18,2.5363]
[1736574004735,9.00764358,186.21,186.2,2.5363]
[1736574004925,2.19125258,186.29,186.21,2.5363]
[1736574005131,9.00764358,186.22,186.21,2.5363]
[1736574008343,9.00764358,186.22,186.2,2.5363]
[1736574008549,9.00764358,186.22,186.21,2.5363]
[1736574012947,2.19125258,186.29,186.21,2.5363]
[1736574013155,9.00764358,186.22,186.21,2.5363]
[1736574013335,2.19125258,186.29,186.22,2.5363]
[1736574013534,9.00764358,186.24,186.22,2.5363]
[1736574014055,9.00764358,186.23,186.22,2.5363]
[1736574015353,9.00764358,186.23,186.22,6.30036306]
[1736574018156,2.19125258,186.29,186.22,6.30036306]
[1736574018343,2.19125258,186.29,186.23,2.5363]
[1736574018648,9.00764358,186.24,186.23,2.5363]
[1736574020557,9.00764358,186.24,186.23,6.30036306]
[1736574020742,9.00764358,186.24,186.23,3.76406306]
[1736574021638,9.00764358,186.24,186.23,6.30036306]
[1736574022049,2.19125258,186.29,186.23,6.30036306]
[1736574022257,9.00764358,186.26,186.25,2.5363]
[1736574024052,9.00764358,186.26,186.25,6.30036306]
[1736574025355,5.3667,186.34,186.25,6.30036306]
[1736574025559,9.00764358,186.28,186.27,2.5363]
[1736574025740,9.00764358,186.29,186.27,2.5363]
[1736574025938,9.00764358,186.29,186.28,2.5363]
[1736574027055,9.00764358,186.29,186.27,2.5363]
[1736574027257,9.00764358,186.28,186.25,6.30036306]
[1736574027464,9.00764358,186.26,186.25,6.30036306]
[1736574027762,9.00764358,186.26,186.25,2.5363]
[1736574028864,7.02585258,186.35,186.26,2.5363]
[1736574029065,9.00764358,186.29,186.28,2.5363]
[1736574029266,7.02585258,186.35,186.28,2.5363]
[1736574029440,9.00764358,186.29,186.28,2.5363]
[1736574030653,9.00764358,186.3,186.28,2.5363]
[1736574030856,9.00764358,186.3,186.29,2.5363]
[1736574031361,9.00764358,186.31,186.3,2.5363]
[1736574033675,9.00764358,186.32,186.3,2.5363]
[1736574034168,9.00764358,186.33,186.3,2.5363]
[1736574035676,36.03057432,186.39,186.33,2.5363]
[1736574035677,9.00764358,186.34,186.33,2.5363]
[1736574036178,6.4004,186.4,186.33,2.5363]
[1736574036350,2.20425258,186.41,186.35,2.5363]
[1736574036557,9.00764358,186.36,186.35,2.5363]
[1736574037266,2.20425258,186.41,186.35,2.5363]
[1736574037453,9.00764358,186.36,186.35,2.5363]
[1736574040850,9.00764358,186.36,186.34,2.5363]
[1736574041049,9.00764358,186.35,186.33,2.5363]
[1736574041262,9.00764358,186.34,186.33,2.5363]
[1736574042669,9.00764358,186.34,186.32,2.5363]
[1736574042874,9.00764358,186.33,186.31,2.5363]
[1736574043051,9.00764358,186.32,186.29,2.5363]
[1736574043253,12.17265258,186.38,186.3,2.5363]
[1736574043766,12.17265258,186.38,186.31,2.5363]
[1736574044493,9.00764358,186.32,186.31,2.5363]
[1736574046172,9.00764358,186.34,186.31,2.5363]
[1736574046353,36.03057432,186.39,186.35,2.5363]
[1736574046547,1.6057,186.41,186.36,2.5363]
[1736574047891,9.00764358,186.37,186.36,2.5363]
[1736574048590,1.6057,186.41,186.36,2.5363]
[1736574048749,9.00764358,186.37,186.36,2.5363]
[1736574051575,1.6057,186.41,186.36,2.5363]
[1736574051781,9.00764358,186.38,186.37,2.5363]
[1736574052577,9.00764358,186.39,186.37,2.5363]
[1736574055765,9.00764358,186.38,186.37,2.5363]
[1736574058265,5.96225258,186.44,186.37,2.5363]
[1736574058464,0.59855258,186.43,186.38,2.5363]
[1736574059182,0.59855258,186.43,186.37,2.5363]
[1736574059586,0.59855258,186.43,186.36,2.5363]
[1736574059774,9.00764358,186.37,186.36,2.5363]
[1736574060401,9.00764358,186.37,186.35,2.5363]
[1736574060703,9.00764358,186.36,186.33,2.5363]
[1736574060879,9.00764358,186.34,186.33,2.5363]
[1736574066019,9.00764358,186.34,186.32,2.5363]
[1736574066322,9.00764358,186.33,186.32,2.5363]
[1736574067488,9.00764358,186.33,186.3,2.5363]
[1736574067804,9.00764358,186.31,186.3,2.5363]
[1736574069202,9.00764358,186.31,186.29,2.5363]
[1736574069501,9.00764358,186.3,186.29,2.5363]
[1736574071786,45.0382179,186.3,186.25,2.5363]
[1736574071987,36.03057432,186.3,186.27,2.5363]
[1736574072281,9.00764358,186.28,186.27,2.5363]
[1736574072686,9.00764358,186.28,186.24,2.5363]
[1736574072885,9.00764358,186.25,186.24,2.5363]
[1736574077424,9.00764358,186.25,186.23,2.5363]
[1736574077632,9.00764358,186.24,186.23,2.5363]
[1736574079408,9.00764358,186.24,186.22,2.5363]
[1736574079607,9.00764358,186.23,186.22,2.5363]
[1736574080630,9.00764358,186.23,186.2,2.5363]
[1736574080825,9.00764358,186.21,186.19,2.5363]
[1736574081029,9.00764358,186.2,186.19,2.5363]
[1736574092538,15.46004358,186.2,186.13,0.80565163]
[1736574092741,45.0382179,186.14,186.08,2.5363]
[1736574093037,9.00764358,186.09,186.08,2.5363]
[1736574093420,0.59855258,186.18,186.1,2.5363]
[1736574093619,9.00764358,186.12,186.11,2.5363]
[1736574094414,9.00764358,186.12,186.08,20.0]
[1736574094415,0.59855258,186.18,186.13,2.5363]
[1736574094815,9.00764358,186.14,186.13,2.5363]
[1736574095236,9.00764358,186.15,186.14,2.5363]
[1736574098353,9.00764358,186.15,186.12,2.5363]
[1736574098527,9.00764358,186.13,186.1,22.5363]
[1736574098726,9.00764358,186.11,186.1,22.5363]
[1736574099059,9.00764358,186.11,186.1,2.5363]
[1736574101433,0.59855258,186.17,186.1,2.5363]
[1736574101747,9.00764358,186.11,186.1,2.5363]
[1736574105637,1.5579,186.19,186.13,2.5363]
[1736574105832,9.00764358,186.15,186.13,2.5363]
[1736574106040,9.00764358,186.15,186.14,2.5363]
[1736574113159,9.00764358,186.15,186.11,2.5363]
[1736574113363,0.59855258,186.14,186.1,2.5363]
[1736574113696,1.5579,186.19,186.13,2.5363]
[1736574114455,1.5579,186.19,186.14,2.5363]
[1736574115676,9.00764358,186.15,186.14,2.5363]
[1736574116046,1.5579,186.19,186.15,2.5363]
[1736574116370,9.00764358,186.16,186.15,2.5363]
[1736574122163,9.00764358,186.16,186.14,2.5363]
[1736574122363,9.00764358,186.15,186.14,2.5363]
[1736574128085,9.00764358,186.15,186.14,6.30344795]
[1736574128883,36.03057432,186.21,186.14,6.30344795]
[1736574129087,36.6291269,186.21,186.17,2.5363]
[1736574129670,36.6291269,186.21,186.15,2.5363]
[1736574130176,9.00764358,186.16,186.15,2.5363]
[1736574135680,9.00764358,186.16,186.15,6.30786144]
[1736574153501,9.00764358,186.16,186.15,3.77156144]
[1736574153744,9.00764358,186.16,186.11,8.36229952]
[1736574153883,45.0382179,186.12,186.11,8.36229952]
[1736574154283,45.0382179,186.12,186.09,2.5363]
[1736574154914,45.0382179,186.12,186.08,2.5363]
[1736574155198,9.00764358,186.09,186.07,2.5363]
[1736574155422,9.00764358,186.08,186.07,2.5363]
[1736574168924,9.00764358,186.08,186.05,22.5363]
[1736574169231,9.00764358,186.06,186.05,2.5363]
[1736574170737,9.00764358,186.06,186.04,2.5363]
[1736574171044,9.00764358,186.05,186.04,2.5363]
[1736574172034,8.94298605,186.05,186.04,2.5363]
[1736574173614,8.94298605,186.05,186.04,6.30098044]
[1736574174851,8.94298605,186.05,186.03,2.5363]
[1736574175011,9.00764358,186.04,186.01,2.5363]
[1736574175212,9.00764358,186.02,186.01,22.5363]
[1736574179244,9.00764358,186.02,186.01,2.5363]
[1736574180942,9.00764358,186.02,186.0,2.5363]
[1736574181251,1.6029,186.04,186.01,2.5363]
[1736574182018,1.6029,186.04,186.02,2.5363]
[1736574182217,0.59855258,186.07,186.02,2.5363]
[1736574182418,9.00764358,186.03,186.02,2.5363]
[1736574188245,9.00764358,186.04,186.03,2.5363]
[1736574188546,9.00764358,186.08,186.07,2.5363]
[1736574188755,9.00764358,186.09,186.08,2.5363]
[1736574188950,1.5637,186.18,186.11,2.5363]
[1736574189148,0.59855258,186.17,186.12,2.5363]
[1736574189533,9.00764358,186.13,186.12,2.5363]
[1736574191349,9.00764358,186.14,186.13,2.5363]
[1736574193658,2.16225258,186.18,186.14,2.5363]
[1736574193861,0.59855258,186.2,186.16,2.5363]
[1736574194026,9.00764358,186.17,186.16,2.5363]
[1736574195474,0.59855258,186.2,186.16,2.5363]
[1736574195677,9.00764358,186.17,186.16,2.5363]
[1736574197940,9.00764358,186.17,186.14,2.5363]
[1736574198267,9.00764358,186.15,186.14,2.5363]
[1736574200974,9.00764358,186.16,186.15,2.5363]
[1736574201768,6.9336,186.23,186.18,2.5363]
[1736574201942,9.00764358,186.19,186.18,2.5363]
[1736574208675,4.00764358,186.19,186.18,2.5363]
[1736574209882,4.00764358,186.19,186.16,2.5363]
[1736574210174,9.00764358,186.17,186.16,2.5363]
[1736574211352,9.00764358,186.17,186.13,2.5363]
[1736574211557,9.00764358,186.14,186.12,2.5363]
[1736574211758,5.96915258,186.2,186.13,2.5363]
[1736574212266,5.96915258,186.2,186.12,2.5363]
[1736574212452,9.00764358,186.13,186.12,2.5363]
[1736574217867,7.4637,186.11,186.02,2.5363]
[1736574218048,7.4637,186.11,185.98,10.89859952]
[1736574218049,45.0382179,186.03,185.98,10.89859952]
[1736574218251,9.00764358,185.99,185.98,10.89859952]
[1736574218571,6.0792,186.07,186.02,2.5363]
[1736574218876,0.59855258,186.1,186.03,2.5363]
[1736574219083,9.00764358,186.04,186.03,2.5363]
[1736574224384,9.00764358,186.04,186.02,2.5363]
[1736574224582,0.59855258,186.08,186.03,2.5363]
[1736574225667,9.00764358,186.04,186.03,2.5363]
[1736574229991,9.00764358,186.04,186.02,2.5363]
[1736574230163,9.00764358,186.03,186.02,2.5363]
[1736574230492,9.00764358,186.03,186.01,2.5363]
[1736574230697,9.00764358,186.02,185.98,2.5363]
[1736574230878,36.03057432,186.03,185.99,2.5363]
[1736574231969,36.03057432,186.03,185.98,2.5363]
[1736574232290,9.00764358,185.99,185.98,2.5363]
[1736574233567,36.03057432,186.03,185.99,20.0]
[1736574233765,9.00764358,186.0,185.99,20.0]
[1736574234961,9.00764358,186.0,185.99,22.5363]
[1736574235391,9.00764358,186.0,185.99,2.5363]
[1736574238587,9.00764358,186.0,185.98,2.5363]
[1736574238824,0.59855258,186.02,185.99,2.5363]
[1736574239682,0.59855258,186.02,185.97,2.5363]
[1736574239882,9.00764358,185.98,185.97,2.5363]
[1736574242172,2.14925258,186.05,185.97,2.5363]
[1736574242508,36.03057432,186.03,186.02,2.5363]
[1736574244208,9.00764358,186.03,186.02,2.5363]
[1736574245411,45.0382179,186.03,186.02,2.5363]
[1736574251818,9.00764358,186.03,186.02,2.5363]
[1736574252317,0.59855258,186.07,186.05,2.5363]
[1736574253321,9.00764358,186.06,186.05,2.5363]
[1736574254413,0.59855258,186.07,186.05,2.5363]
[1736574254618,9.00764358,186.06,186.05,2.5363]
[1736574255914,117.23057432,186.12,186.08,2.5363]
[1736574256502,36.03057432,186.12,186.09,2.5363]
[1736574257614,9.00764358,186.1,186.09,2.5363]
[1736574257913,36.03057432,186.12,186.09,2.5363]
[1736574258097,9.00764358,186.1,186.09,2.5363]
[1736574267610,9.00764358,186.1,186.08,2.5363]
[1736574267811,9.00764358,186.09,186.08,2.5363]
[1736574268012,9.00764358,186.09,186.07,2.5363]
[1736574268209,9.00764358,186.08,186.07,2.5363]
[1736574272939,9.00764358,186.08,186.03,2.5363]
[1736574273105,45.0382179,186.04,186.02,2.5363]
[1736574273313,45.0382179,186.03,186.02,2.5363]
[1736574279912,0.59855258,186.08,186.02,2.5363]
[1736574280235,45.0382179,186.03,186.02,2.5363]
[1736574299254,45.0382179,186.03,186.01,2.5363]
[1736574299442,45.0382179,186.03,186.02,2.5363]
[1736574300663,45.0382179,186.03,186.01,2.5363]
[1736574300878,9.60619616,186.02,186.01,2.5363]
[1736574301082,9.60619616,186.02,186.0,2.5363]
[1736574301282,9.60619616,186.02,186.01,2.5363]
[1736574301283,9.00764358,186.02,186.01,2.5363]
[1736574313587,9.60619616,186.02,186.0,2.5363]
[1736574313758,9.00764358,186.01,186.0,2.5363]
[1736574318000,9.00764358,186.01,186.0,6.32470215]
[1736574320289,81.2,186.05,186.0,6.32470215]
[1736574320592,0.59855258,186.05,186.03,2.5363]
[1736574321395,81.79855258,186.08,186.03,2.5363]
[1736574321583,9.00764358,186.04,186.03,2.5363]
[1736574324678,9.00764358,186.04,186.02,2.5363]
[1736574324993,81.2,186.07,186.03,2.5363]
[1736574325192,0.59855258,186.06,186.03,2.5363]
[1736574326607,45.0382179,186.04,186.02,2.5363]
[1736574326784,45.63677048,186.03,186.01,2.5363]
[1736574327109,9.00764358,186.02,186.01,22.5363]
[1736574328297,9.00764358,186.02,186.01,20.0]
[1736574328607,9.00764358,186.02,186.01,22.5363]